Cogmind - Beta 14 @@@ ROGUE MODE // 2024.09.04 @ 14:22:59 Player: THN-L0C Result: Destroyed by as-02129 with Assembled Heavy Rifle Performance ------------- Evolutions (0) 0 Regions Visited (3) 600 Robots Destroyed (24) 120 Value Destroyed (399) 399 Prototype IDs (23) 460 Alien Tech Used (0) 0 Bonus (363) 363 TOTAL SCORE: 1942 Bonus ------- Follower Combat Kills 63 Aligned with FarCom 300 Cogmind --------- Core Integrity 0/250 Matter 300/300 Energy 100/100 System Corruption 0% Temperature Cool (0) Movement Core (350) Ox6 Location -10/Exiles Parts ------- > --- POWER (1) -------- (None) > --- PROPULSION (2) --- (None) > --- UTILITY (2) ------ Improved Heat Sink Large Storage Unit > --- WEAPON (2) ------- (None) > --- INVENTORY (15) --- Ion Engine Light Angular Momentum Engine Light Treads Improved Heat Sink Huge Storage Unit Superbattery (1500) High-capacity Matter Pod (25) Experimental Sensor Array Power Shielding Hammer Explosive Trap Explosive Trap Explosive Trap Peak State ------------ > --- POWER ------------ Light Nuclear Core > --- PROPULSION ------- Light Treads Light Treads > --- UTILITY ---------- Improved Heat Sink Large Storage Unit > --- WEAPON ----------- Beamcaster Beamcaster > --- INVENTORY -------- Ion Engine Light Angular Momentum Engine Light Treads Improved Heat Sink Huge Storage Unit Superbattery High-capacity Matter Pod Experimental Sensor Array Power Shielding Hammer Explosive Trap Explosive Trap Explosive Trap Explosive Trap Explosive Trap [Rating: 22] Favorites ----------- Power Light Ion Engine Engine Light Ion Engine Power Core Light Nuclear Core Propulsion Light Treads Treads Light Treads Utility Large Storage Unit Device Seismic Detector Storage Large Storage Unit Protection Power Shielding Weapon Light Assault Rifle Energy Gun Beamcaster Ballistic Gun Light Assault Rifle Impact Weapon Hammer Build | -11 -10 -10 -10 ------- Run | Yrd Mat Min Exi Slots Evolved . | . . . . Power . | . . . . Propulsion . | . . . . Utility . | . . . . Weapon . | . . . . Parts Attached 26 | 8 9 9 . Power 4 | 1 2 1 . Engine 3 | 1 2 . . Core 1 | . . 1 . Reactor . | . . . . Propulsion 5 | 2 3 . . Treads 5 | 2 3 . . Leg . | . . . . Wheel . | . . . . Hover . | . . . . Flight . | . . . . Utility 5 | 2 1 2 . Device 2 | 1 . 1 . Storage 2 | 1 1 . . Processor . | . . . . Hackware . | . . . . Protection 1 | . . 1 . Artifact . | . . . . Weapon 12 | 3 3 6 . Energy Gun 4 | 2 . 2 . Energy Cannon . | . . . . Ballistic Gun 7 | 1 2 4 . Ballistic Cannon . | . . . . Launcher . | . . . . Special Weapon . | . . . . Impact Weapon 1 | . 1 . . Slashing Weapon . | . . . . Piercing Weapon . | . . . . Special Melee Weapon . | . . . . Unidentified Prototypes . | . . . . Parts Lost 5 | . . . 5 Power 1 | . . . 1 Propulsion 2 | . . . 2 Utility . | . . . . Weapon 2 | . . . 2 Highest Loss Streak 5 | . . . 5 To Critical Strikes 1 | . . . 1 Average Slot Usage (%) 99 | . 100 100 98 Engine 7 | . 14 . . Core 6 | . . 13 14 Treads 27 | . 28 28 27 Device 11 | . 14 6 14 Storage 14 | . 14 14 14 Protection 2 | . . 7 . Energy Gun 11 | . 4 13 27 Ballistic Gun 16 | . 22 14 . Peak Build Rating 22 | 7 8 21 22 Average Rating 11 | 5 7 15 21 On Entrance 9 | . 7 8 21 Naked Turns . | . . . . Heaviest Build 36 | 12 29 36 36 Greatest Support 40 | 40 40 40 40 Greatest Overweight (x) 10 | . . . 10 Average Overweight (x) . | . . . . Largest Inventory Capacity 15 | 8 15 15 15 Average Capacity 13 | 6 13 15 15 Most Carried 15 | . 13 15 15 Average Carried 10 | . 7 14 14 Final Capacity 15 | 8 15 15 15 Final Carried 15 | . 13 15 13 Class Distribution -------------------- 57% | Scavenger-Mutant 42% | Mutant Dominant Class ---------------- Scavenger-Mutant | -10/Materials Mutant | -10/Mines Scavenger-Mutant | -10/Exiles Resources | -11 -10 -10 -10 ----------- Run | Yrd Mat Min Exi Matter Collected 650 | 222 191 237 . Remotely . | . . . . Salvage Created 665 | 30 465 152 18 Parts 57 | 2 40 15 . Haulers Intercepted 1 | . 1 . . Recyclers Shooed 1 | 1 . . . Parts Field Recycled . | . . . . Retrieved Matter . | . . . . Parts Self-Destructed . | . . . . Prevented . | . . . . Kills | -11 -10 -10 -10 ------- Run | Yrd Mat Min Exi Combat Hostiles Destroyed 22 | . 13 7 2 Guns 22 | . 13 7 2 Classes Destroyed 7 | 1 5 . 1 Tunneler 1 | 1 . . . Hauler 1 | . 1 . . Recycler 1 | . 1 . . Watcher 1 | . 1 . . Swarmer 13 | . 8 5 . Grunt 7 | . 5 2 . Assembled 2 | . . . 2 Best Kill Streak 5 | 1 5 3 2 Combat Bots Only 5 | . 5 3 2 Max Kills in Single Turn 2 | 1 2 1 1 Gunslinging 1 | . 1 . . Exploded . | . . . . Melee . | . . . . Uniques/NPCs Destroyed . | . . . . Combat | -11 -10 -10 -10 -------- Run | Yrd Mat Min Exi Hostile Shots Fired 145 | . 67 38 40 Missed 41 | . 21 14 6 Damage Taken 1225 | . 417 232 576 Core 265 | . 87 16 162 Absorbed by Shields . | . . . . Redirected to Shielding 12 | . . 12 . Core Remaining (%) 100 | 100 . . . Volleys Fired 76 | 3 47 19 7 Largest 2 | 2 2 2 1 Hottest 150 | 60 60 150 75 Shots Fired 143 | 6 94 36 7 Gun 143 | 6 94 36 7 Cannon . | . . . . Launcher . | . . . . Special . | . . . . Kinetic 98 | 3 69 26 . Thermal 42 | . 25 10 7 Explosive . | . . . . Electromagnetic 3 | 3 . . . Robot Hit Streak 7 | 3 7 6 3 Robot Miss Streak 4 | 2 3 4 2 Penetration Max . | . . . . Secondary Targets 3 | . 2 1 . Max Gunslinging Chain 1 | . 1 1 . Shots Hit Robots 82 | 3 57 18 4 Core Hits 40 | 1 28 9 2 Critical Kills . | . . . . Critical Parts Destroyed . | . . . . Critical Strikes . | . . . . Melee Attacks 1 | . 1 . . Impact 1 | . 1 . . Slashing . | . . . . Piercing . | . . . . Sneak Attacks . | . . . . Combat Hostiles . | . . . . Follow-up Attacks . | . . . . Damage Inflicted 891 | 36 523 246 86 Guns 872 | 36 519 231 86 Cannons . | . . . . Explosions . | . . . . Melee . | . . . . Ramming 19 | . 4 15 . Kinetic 499 | 8 376 115 . Thermal 345 | . 143 116 86 Explosive . | . . . . Electromagnetic 28 | 28 . . . Impact . | . . . . Slashing . | . . . . Piercing . | . . . . Highest Corruption . | . . . . Average Corruption . | . . . . Corruption Purged . | . . . . Corruption Blocked . | . . . . Overload Shots . | . . . . Overflow Damage . | . . . . Projectiles . | . . . . Explosions . | . . . . Melee . | . . . . Knockbacks . | . . . . Impact . | . . . . Kinetic . | . . . . Secondary . | . . . . Self-Inflicted Damage . | . . . . Shots . | . . . . Rammed 3 | . 1 2 . Targets Rammed 3 | . 1 2 . Kicked . | . . . . Crushed . | . . . . Highest Temperature 268 | 20 52 268 130 Average Temperature 48 | 15 19 84 66 Received Heat Transfer 230 | . 96 54 80 Effects 2 | . . 2 . Interference 2 | . . 2 . Siege Activations . | . . . . Robots Corrupted . | . . . . Combat Hostiles . | . . . . Parts Fried . | . . . . Impact Corruptions . | . . . . Robots Melted . | . . . . Combat Hostiles . | . . . . Parts Melted . | . . . . Heat Transferred 658 | . 325 185 148 Parts Sabotaged . | . . . . Parts Stolen . | . . . . Parts Stripped . | . . . . Power Chain Reactions . | . . . . Alert | -11 -10 -10 -10 ------- Run | Yrd Mat Min Exi Peak Influence 308 | 5 308 268 . Initial 44 | . 3 44 . Average 115 | 2 119 121 . Maximum Alert Level 1 | . 1 1 . Low Security (%) 86 | 100 83 89 . Level 1 13 | . 16 10 . Level 2 . | . . . . Level 3 . | . . . . Level 4 . | . . . . Level 5 . | . . . . High Security . | . . . . Max Security . | . . . . Squads Dispatched 4 | . 4 . . Investigation 1 | . 1 . . Extermination . | . . . . Reinforcement 3 | . 3 . . Assault . | . . . . Garrison . | . . . . Intercept . | . . . . Searches Triggered . | . . . . Construction Impeded . | . . . . Haulers Reinforced . | . . . . Active Scanning Responses . | . . . . Cargo Convoy Interrupts . | . . . . Stealth | -11 -10 -10 -10 --------- Run | Yrd Mat Min Exi Distress Signals 1 | . 1 . . Communications Jammed . | . . . . Distress Signals . | . . . . Times Spotted 48 | . 26 14 8 Peak Tracking Total 10 | . 8 3 10 Tactical Retreats 1 | . 1 . . Traps | -11 -10 -10 -10 ------- Run | Yrd Mat Min Exi Traps Triggered . | . . . . Indirectly . | . . . . Trap Hack Attempts . | . . . . Triggered . | . . . . Disarmed . | . . . . Reprogrammed . | . . . . Reused 2 | . . . 2 Traps Extracted . | . . . . Installed 2 | . . . 2 Triggered . | . . . . Most Traps Carried 5 | . . 5 5 Machines | -11 -10 -10 -10 ---------- Run | Yrd Mat Min Exi Machines Disabled . | . . . . Max in Single Turn . | . . . . Machines Repaired . | . . . . Machines Dismantled . | . . . . Machines Sabotaged . | . . . . Overloaded Fab Kills . | . . . . Hacking | -11 -10 -10 -10 --------- Run | Yrd Mat Min Exi Machines Accessed 9 | . 6 2 1 Terminals 7 | . 5 2 . Fabricators . | . . . . Repair Stations . | . . . . Recycling Units 1 | . 1 . . Scanalyzers . | . . . . Garrison Access . | . . . . Total Hacks 28 | . 19 8 1 Successful 14 | . 10 3 1 Failed 14 | . 9 5 . Catastrophic 1 | . . 1 . Database Lockouts . | . . . . Manual 26 | . 17 8 1 Terminals 26 | . 18 8 . Fabricators . | . . . . Repair Stations . | . . . . Recycling Units 1 | . 1 . . Scanalyzers . | . . . . Garrison Access . | . . . . Terminal Hacks 6 | . 2 3 1 Robot Analysis 4 | . 1 3 . Terminal Index 1 | . 1 . . Derelict Proto ID Bank 1 | . . . 1 Fabricator Hacks . | . . . . Repair Station Hacks . | . . . . Recycling Unit Hacks . | . . . . Scanalyzer . | . . . . Garrison Access Hacks . | . . . . Unauthorized Hacks 8 | . 8 . . Terminals 7 | . 7 . . Botnet 2 | . 2 . . Skim 5 | . 5 . . Fabricators . | . . . . Repair Stations . | . . . . Recycling Units 1 | . 1 . . Tunnel 1 | . 1 . . Scanalyzers . | . . . . Garrison Access . | . . . . Data Cores Recovered . | . . . . Used . | . . . . Hacking Detections 7 | . 5 2 . Full Trace Events . | . . . . Feedback Events . | . . . . Feedback Blocked . | . . . . Robot Schematics Acquired . | . . . . Robots Built . | . . . . Authchips . | . . . . Time . | . . . . Total Robot Build Rating . | . . . . Part Schematics Acquired . | . . . . Parts Built . | . . . . Authchips . | . . . . Time . | . . . . Total Part Build Rating . | . . . . Parts Repaired . | . . . . Time . | . . . . Parts Recycled . | . . . . Recycled Matter . | . . . . Retrieved Matter . | . . . . Retrieved Components . | . . . . Parts Scanalyzed . | . . . . Part Schematics Acquired . | . . . . Parts Damaged . | . . . . Bothacking | -11 -10 -10 -10 ------------ Run | Yrd Mat Min Exi Used RIF Installer . | . . . . Robots Hacked . | . . . . Non-combat . | . . . . Combat . | . . . . Robot Hacks Applied . | . . . . Relay Couplers Released . | . . . . Fabnet Peak Effective % . | . . . . Robots Rewired . | . . . . Allies Hacked . | . . . . Hacks Repelled . | . . . . Allies | -11 -10 -10 -10 -------- Run | Yrd Mat Min Exi Total Allies 3 | . . 3 . Largest Group 3 | . . 3 1 Highest-Rated Group 70 | . . 70 8 Highest-Rated Ally 31 | . . 31 8 Total Orders . | . . . . Ally Attacks 17 | . . 17 . Total Damage 231 | . . 231 . Kills 5 | . . 5 . Allies Corrupted . | . . . . Allies Melted . | . . . . Intel | -11 -10 -10 -10 ------- Run | Yrd Mat Min Exi Robot Analysis Total 4 | . 1 3 . Derelict Logs Recovered 1 | . . 1 . Drone Launches . | . . . . Drone Recoveries . | . . . . Exploration | -11 -10 -10 -10 ------------- Run | Yrd Mat Min Exi Turns Passed 2563 | 91 1327 757 388 Spaces Moved 1392 | 46 703 413 230 Core 4 | 3 . . 1 Treads 1388 | 43 703 413 229 Legs . | . . . . Wheels . | . . . . Hover . | . . . . Flight . | . . . . Fastest Speed 50 | 50 160 160 160 Average Speed 160 | 152 160 160 161 Slowest Speed 550 | 160 160 160 550 Overloaded Moves . | . . . . Propulsion Burnouts . | . . . . Robots Hopped . | . . . . Cave-ins Triggered . | . . . . Exploration Rate (%) 54 | 4 94 68 52 Regions Visited 3 Branch Regions 2 Pre-discovered Areas 4 | . 3 1 . Known Exits Taken 1 | . 1 . . Unknown Exits Taken 2 | 1 . 1 . Scrap Searched 1 | . . 1 . Spaces Dug 1 | . 1 . . Terrain Destroyed 1 | . 1 . . Melee 1 | . 1 . . Projectile . | . . . . AOE . | . . . . Terrain Rammed . | . . . . Walls Destroyed . | . . . . Machines Disabled . | . . . . Actions | -11 -10 -10 -10 --------- Run | Yrd Mat Min Exi Total 1605 | 57 819 486 243 Wait 68 | 1 51 16 . Move 1389 | 45 702 412 230 Hop . | . . . . Pick Up 21 | . 7 13 1 Fast Attach 7 | 7 . . . Attach . | . . . . Detach . | . . . . Swap 19 | 1 9 9 . Drop 19 | . 1 15 3 Fire 76 | 3 47 19 7 Melee 1 | . 1 . . Ram . | . . . . Kick . | . . . . Crush 3 | . 1 2 . Escape Stasis . | . . . . Rewire . | . . . . Trap 2 | . . . 2 Miscellaneous . | . . . . Route ------- -11/Scrapyard -10/Materials (discovered 6 exits: [*Mat x3] / *Min x2 / Sub) -10/Mines (discovered 3 exits: [*Mat] / *Exi / *Sub) -10/Exiles (discovered 1 exit: Min) History --------- Turn | Location | Event 2 | -11/Scrapyard | Met Revision 17 27 | -11/Scrapyard | Discovered new exit (range 15) 92 | -11/Scrapyard | Entered Materials 305 | -10/Materials | Discovered new exit (range 14) 318 | -10/Materials | Build established: Mutant 409 | -10/Materials | Discovered new exit (range 8) 773 | -10/Materials | Discovered new exit (range 13) 864 | -10/Materials | Build established: Scavenger-Mutant 1097 | -10/Materials | Identified exit to Mines 1151 | -10/Materials | Identified exit to Subcaves 1195 | -10/Materials | Learned location of Storage (-8) 1197 | -10/Materials | Discovered new exit (range 6) 1259 | -10/Materials | Loaded intel: 9 trap records 1277 | -10/Materials | Learned 2 Storage zone layouts 1379 | -10/Materials | Learned location of 2 exits from Materials 1419 | -10/Materials | Entered Mines 1432 | -10/Mines | Escorted by a lone wolf Derelict 1503 | -10/Mines | Found a hidden stash of uninstalled traps 1643 | -10/Mines | Build established: Mutant 1780 | -10/Mines | Found a damaged Exp. Sensor Array with a note attached 1783 | -10/Mines | Found Prototype Device 1863 | -10/Mines | Learned Materials interactive machine intel 1972 | -10/Mines | Discovered new exit (range 3) 2055 | -10/Mines | Discovered exit to Subcaves (range 13) 2106 | -10/Mines | Assembled infested the area 2140 | -10/Mines | Build established: Scavenger-Mutant 2168 | -10/Mines | Deemed a non-threat by the Exiles lab entrance 2170 | -10/Mines | Discovered new exit (range 5) 2176 | -10/Mines | Entered Exiles 2176 | -10/Exiles | Accompanied by 1 ally 2177 | -10/Exiles | Identified exit to Mines 2213 | -10/Exiles | Met 8R-AWN 2242 | -10/Exiles | Met EX-HEX 2290 | -10/Exiles | Met EX-BIN 2309 | -10/Exiles | Aligned with FarCom system 2311 | -10/Exiles | Given EX-Vault access code 2359 | -10/Exiles | Opened EX-Vault 2368 | -10/Exiles | Found Superbattery 2406 | -10/Exiles | Warned to stay clear of 0b10 Research branches 2453 | -10/Exiles | Met EX-DEC 2536 | -10/Exiles | Warned about trapping Exiles lab 2544 | -10/Exiles | Attacked by the Exiles 2551 | -10/Exiles | Core integrity fell below 50% 2560 | -10/Exiles | Core integrity fell below 20% 2564 | -10/Exiles | Destroyed by as-02129 with Assembled Heavy Rifle Last Messages --------------- 02548_ HV Slug penetrates Wall. 02550_ HV Slug penetrates Machine. 02550_ Machine disabled. 02550_ HV Slug penetrates Wall. 02550_ Penetrated by HV Slug. 02552_ Lgt. Treads destroyed. 02553_ Destroyed Asb. Hover Unit. 02554_ Penetrated by HV Slug. 02554_ Critical hit (Destroy). 02554_ Lgt. Treads destroyed. 02554_ Penetrated by HV Slug. 02555_ as-33154 destroyed. 02557_ Penetrated by HV Slug. 02557_ as-54520 destroyed. 02558_ Beamcaster destroyed. 02559_ Penetrated by HV Slug. 02560_ Beamcaster destroyed. 02561_ Penetrated by HV Slug. 02563_ Lgt. Nuclear Core destroyed. 02563_ Penetrated by HV Slug. Map ----- +----------------------------------------------------+ | " """""""""#?????????????????????????????????? | | " ###########?????????????????????????????????? | | " #???????????????????????????????????????????? | | #???????????????????????????????????????????? | | ##??????????????????????????????????????????? | | ##???###########???????????????????????????? | | #####"""""""""##??????????????????????????? | | " """ """"##?????????????????????????? | | "" " #?????????????????????????? | | " """#?????????????????????????? | | " "#???????????#####?????????? | | " "##?????????##" #?????????? | | ""###???????#" #?????????? | | """ """#??????## ##????????? | | ##""" "#????### ###??????? | | ?#####""" ##???# ######## | | ?????##""" ##?## #""""## | | ??????#"""" ##; | | ??????#"" ## * | | ?????#"""" #### | | ????"" z ""#?#"""""#### | | ??"" #"""##?#######??#### | | ? ######??????????????# | | ?? ##???????????????????? | | ? " ##????????????????????? | | ?? "" " a%%% @"#?????????????????????? | | ?? ##""" " " "" %% ##?????????????????????? | | ?????####""" """# " #??????????????????????? | | ????????###""""## ## ; # #??????????????????????? | | ??????????####??##??#######??????????????????????? | | ?????????????????????????????????????????????????? | | ?????????????????????????????????????????????????? | | ?????????????????????????????????????????????????? | | ?????????????????????????????????????????????????? | | ?????????????????????????????????????????????????? | | ?????????????????????????????????????????????????? | | ?????????????????????????????????????????????????? | | ?????????????????????????????????????????????????? | | ?????????????????????????????????????????????????? | | ?????????????????????????????????????????????????? | | ?????????????????????????????????????????????????? | | ?????????????????????????????????????????????????? | | ?????????????????????????????????????????????????? | | ?????????????????????????????????????????????????? | | ?????????????????????????????????????????????????? | | ?????????????????????????????????????????????????? | | ?????????????????????????????????????????????????? | | ?????????????????????????????????????????????????? | | ?????????????????????????????????????????????????? | | ?????????????????????????????????????????????????? | +----------------------------------------------------+ Best States ------------- Heat Dissipation 39 Energy Generation 14 Energy Capacity 250 Matter Stores 300 Matter Capacity 300 Sight Range 16 Terrain Scan Density 10 Power Shielding 33 Evasion (%) 40 Recoil Reduction 2 Item Schematics ----------------- None Robot Schematics ------------------ None Fabricated ------------ Nothing Alien Tech Used ----------------- None Achievements -------------- None Challenges ------------ None Game ------ Seed ImprovedCargoCloak Manual? 0 Play Time 00:14:19 Cumulative 209.3 hours Start 2024.09.04 @ 14:07:01 End 2024.09.04 @ 14:22:59 Sessions 1 Manual Loads 0 Difficulty Rogue Special Mode None Game No. 181 Rogue 181 Adventurer 0 Explorer 0 Win Type - Total 1 Types 0/0/0/1/0/0/0/0/0 Lore% 63 Gallery% 73 Achievement% 54 Wizard Run 0 Options --------- Layout 2 ASCII 0 Keyboard 1 Movement Vi Keybinds 0 Fullscreen 1 Font 32/SmallcapsGlow Map View 77x44 Zoom Use 0% Tactical HUD 1 Map Filters NONE Filters NONE Steam 1 RUN: e043f655-ef1c-4fd9-ad84-a6fad93bace7